fUST/lending_fUST_20250421
["ID","MTS","AMOUNT","RATE_DAILY","PERIOD"]
[358472779,1745188247859,-500.0,0.0002,2]
[358472780,1745188247869,-500.0,0.0002,2]
[358472781,1745188247879,-500.0,0.0002,2]
[358472782,1745188247888,-500.0,0.0002,2]
[358472783,1745188247898,-500.0,0.0002,2]
[358472784,1745188247908,-500.0,0.0002,2]
[358472785,1745188247919,-500.0,0.0002,2]
[358472786,1745188247928,-500.0,0.0002,2]
[358472787,1745188247938,-500.0,0.0002,2]
[358472788,1745188247948,-251.75045648,0.0002,2]
[358472789,1745188248148,-527.1500001,0.00017564,2]
[358472790,1745188248159,-472.8499999,0.00017564,2]
[358472791,1745188248168,-500.0,0.00019178,2]
[358472792,1745188248177,-248.24954352,0.0002,2]
[358472793,1745188248186,-500.0,0.0002,2]
[358472794,1745188248195,-500.0,0.0002,2]
[358472795,1745188248204,-500.0,0.0002,2]
[358472796,1745188248214,-500.0,0.0002,2]
[358472797,1745188248223,-131.18794432,0.0002,2]
[358472801,1745188609522,207.5,0.00025,30]
[358472803,1745188741018,175.225562,0.00025,30]
[358472804,1745188751534,150.43067,0.00025,30]
[358472814,1745189232995,150.43067,0.000245,30]
[358472859,1745189432722,-218.505495,0.00017482,2]
[358472861,1745189432732,-98.058439,0.00017482,2]
[358472871,1745189432826,-2822.3999772,0.00017482,2]
[358472873,1745189432835,-1866.28585361,0.0001843,2]
[358472876,1745189432847,-66.93719003,0.0001843,2]
[358472878,1745189432856,-160.0,0.00018444,2]
[358472880,1745189432866,-160.0,0.00018464,2]
[358472882,1745189432875,-1000.0,0.00018464,2]
[358472883,1745189432884,-300.0,0.00018499,2]
[358472885,1745189432894,-300.0,0.00018499,2]
[358472887,1745189432903,-300.0,0.00018499,2]
[358472889,1745189432913,-889.97223198,0.000185,2]
[358472892,1745189432925,-867.306805,0.000185,2]
[358473021,1745189438858,-755.8897517,0.000185,2]
[358473022,1745189438870,-2512.58486121,0.000185,2]
[358473023,1745189438882,-471.54538709,0.000185,2]
[358473024,1745189438946,-1096.61067712,0.000185,2]
[358473035,1745189443681,-69521.443236,0.000185,2]
[358473036,1745189443690,-7274.6046282,0.00018561,2]
[358473037,1745189443702,-5290.71948065,0.00018561,2]
[358473038,1745189443713,-160.0,0.00018561,2]
[358473039,1745189443722,-500.0,0.00018563,2]
[358473040,1745189443731,-500.043,0.00018563,2]
[358473041,1745189443741,-500.0,0.00018563,2]
[358473042,1745189443750,-500.0,0.00018563,2]
[358473043,1745189443759,-500.0,0.00018563,2]
[358473044,1745189443769,-500.0,0.00018563,2]
[358473045,1745189443778,-500.0,0.00018563,2]
[358473046,1745189443787,-500.0,0.00018563,2]
[358473047,1745189443796,-500.0,0.00018563,2]
[358473048,1745189443805,-500.0,0.00018563,2]
[358473049,1745189443814,-500.0,0.00018563,2]
[358473050,1745189443823,-500.0,0.00018563,2]
[358473051,1745189443832,-500.0,0.00018563,2]
[358473052,1745189443841,-500.0,0.00018563,2]
[358473053,1745189443850,-500.0,0.00018563,2]
[358473054,1745189443859,-500.0,0.00018563,2]
[358473055,1745189443869,-500.0,0.00018563,2]
[358473056,1745189443878,-500.0,0.00018563,2]
[358473058,1745189443887,-206.12863876,0.00018563,2]
[358473060,1745189443896,-500.0,0.00018563,2]
[358473061,1745189443905,-500.0,0.00018563,2]
[358473062,1745189443914,-500.0,0.00018563,2]
[358473063,1745189443923,-538.05205777,0.00018563,2]
[358473064,1745189443932,-500.0,0.00018563,2]
[358473065,1745189443942,-500.0,0.00018563,2]
[358473066,1745189443951,-500.0,0.00018563,2]
[358473067,1745189443960,-500.0,0.00018563,2]
[358473068,1745189443969,-500.0,0.00018563,2]
[358473069,1745189443979,-650.0,0.00018563,2]
[358473070,1745189443988,-64834.13108239,0.00018564,2]
[358473071,1745189444000,-15532.44419515,0.00018564,2]
[358473072,1745189444016,-1933.78,0.00018564,2]
[358473073,1745189444028,-530.17827491,0.00018564,2]
[358473085,1745189446740,-995.33979176,0.00018564,2]
[358473086,1745189446753,-35288.68939313,0.00018564,2]
[358473087,1745189446846,-2028.12413395,0.00018564,2]
[358473088,1745189629240,834.43852127,0.00025,30]
[358473092,1745190441696,-229.461972,0.00017198,2]
[358473122,1745190631776,-300.0,0.00017209,2]
[358473123,1745190631786,-162.0,0.00017209,2]
[358473125,1745190631795,-2105.85101922,0.0001721,2]
[358473127,1745190631807,-2750.0,0.0001721,2]
[358473129,1745190631819,-4450.0,0.0001721,2]
[358473131,1745190631834,-6333.67103448,0.0001721,2]
[358473142,1745190631948,-9260.4779463,0.0001721,2]
[358473145,1745190631958,-1000.0,0.00017382,2]
[358473147,1745190631968,-231.7357308,0.00017458,2]
[358473149,1745190631979,-300.0,0.0001767,2]
[358473151,1745190631988,-250.56799713,0.00018014,2]
[358473153,1745190631998,-1691.57016322,0.00018244,2]
[358473154,1745190632008,-859.70045393,0.00018297,2]
[358473156,1745190632019,-859.70045393,0.00018309,2]
[358473158,1745190632029,-859.70045393,0.00018321,2]
[358473160,1745190632038,-859.70045393,0.00018332,2]
[358473162,1745190632048,-859.70045393,0.00018344,2]
[358473164,1745190632057,-1096.39434308,0.00018396,2]
[358473166,1745190632066,-1096.39434308,0.00018396,2]
[358473167,1745190632076,-1096.39434308,0.00018396,2]
[358473169,1745190632085,-1096.39434308,0.00018396,2]
[358473171,1745190632094,-1096.39434308,0.00018396,2]
[358473173,1745190632103,-1096.39434308,0.00018396,2]
[358473175,1745190632112,-1096.39434308,0.00018396,2]
[358473177,1745190632121,-1096.39434308,0.00018396,2]
[358473179,1745190632131,-1096.39434308,0.00018396,2]
[358473181,1745190632140,-1096.39434308,0.00018396,2]
[358473182,1745190632149,-1096.39434308,0.00018396,2]
[358473184,1745190632159,-1096.39434308,0.00018396,2]
[358473186,1745190632168,-1096.39434308,0.00018396,2]
[358473188,1745190632177,-1096.39434308,0.00018396,2]
[358473190,1745190632187,-1096.39434308,0.00018396,2]
[358473192,1745190632197,-1096.39434308,0.00018396,2]
[358473194,1745190632206,-1096.39434308,0.00018396,2]
[358473195,1745190632215,-1096.39434308,0.00018396,2]
[358473197,1745190632225,-1096.39434308,0.00018396,2]
[358473199,1745190632234,-1096.39434308,0.00018396,2]
[358473201,1745190632244,-1096.39434308,0.00018396,2]
[358473203,1745190632254,-1096.39434308,0.00018396,2]
[358473205,1745190632263,-1096.39434308,0.00018396,2]
[358473207,1745190632272,-1096.39434308,0.00018396,2]
[358473209,1745190632281,-1096.39434308,0.00018396,2]
[358473210,1745190632291,-1096.39434308,0.00018396,2]
[358473212,1745190632300,-1096.39434308,0.00018396,2]
[358473214,1745190632310,-1096.39434308,0.00018396,2]
[358473216,1745190632319,-1096.39434308,0.00018396,2]
[358473218,1745190632329,-1096.39434308,0.00018396,2]
[358473220,1745190632338,-1096.39434308,0.00018396,2]
[358473221,1745190632348,-1096.39434308,0.00018396,2]
[358473223,1745190632358,-1096.39434308,0.00018396,2]
[358473224,1745190632367,-1096.39434308,0.00018396,2]
[358473225,1745190632377,-1096.39434308,0.00018396,2]
[358473226,1745190632387,-1096.39434308,0.00018396,2]
[358473227,1745190632396,-1096.39434308,0.00018396,2]
[358473228,1745190632406,-1096.39434308,0.00018396,2]
[358473229,1745190632415,-1083.4955861,0.00018396,2]
[358473230,1745190632425,-1083.4955861,0.00018396,2]
[358473231,1745190632434,-1083.4955861,0.00018396,2]
[358473232,1745190632444,-1083.4955861,0.00018396,2]
[358473233,1745190632453,-1083.4955861,0.00018396,2]
[358473234,1745190632462,-1083.4955861,0.00018396,2]
[358473235,1745190632472,-1083.4955861,0.00018396,2]
[358473236,1745190632481,-1083.4955861,0.00018396,2]
[358473237,1745190632490,-1083.4955861,0.00018396,2]
[358473238,1745190632499,-1083.4955861,0.00018396,2]
[358473239,1745190632508,-1083.4955861,0.00018396,2]
[358473240,1745190632517,-1083.4955861,0.00018396,2]
[358473241,1745190632526,-1083.4955861,0.00018396,2]
[358473242,1745190632536,-1083.4955861,0.00018396,2]
[358473243,1745190632545,-1083.4955861,0.00018396,2]
[358473244,1745190632554,-1083.4955861,0.00018396,2]
[358473245,1745190632564,-1083.4955861,0.00018396,2]
[358473246,1745190632573,-1083.4955861,0.00018396,2]
[358473247,1745190632583,-1083.4955861,0.00018396,2]
[358473248,1745190632593,-1083.4955861,0.00018396,2]
[358473249,1745190632603,-1083.4955861,0.00018396,2]
[358473250,1745190632612,-1083.4955861,0.00018396,2]
[358473251,1745190632623,-1083.4955861,0.00018396,2]
[358473252,1745190632632,-1083.4955861,0.00018396,2]
[358473253,1745190632642,-1083.4955861,0.00018396,2]
[358473254,1745190632651,-1083.4955861,0.00018396,2]
[358473255,1745190632661,-1083.4955861,0.00018396,2]
[358473256,1745190632670,-1083.4955861,0.00018396,2]
[358473257,1745190632680,-1083.4955861,0.00018396,2]
[358473258,1745190632690,-1083.4955861,0.00018396,2]
[358473259,1745190632700,-1077.79297775,0.00018396,2]
[358473260,1745190632710,-1077.79297775,0.00018396,2]
[358473261,1745190632719,-1077.79297775,0.00018396,2]
[358473262,1745190632729,-1077.79297775,0.00018396,2]
[358473263,1745190632738,-1077.79297775,0.00018396,2]
[358473264,1745190632748,-1077.79297775,0.00018396,2]
[358473265,1745190632758,-1077.79297775,0.00018396,2]
[358473266,1745190632768,-1077.79297775,0.00018396,2]
[358473267,1745190632777,-1077.79297775,0.00018396,2]
[358473268,1745190632787,-1077.79297775,0.00018396,2]
[358473269,1745190632798,-1077.79297775,0.00018396,2]
[358473270,1745190632808,-1077.79297775,0.00018396,2]
[358473271,1745190632818,-1077.79297775,0.00018396,2]
[358473272,1745190632827,-1077.79297775,0.00018396,2]
[358473273,1745190632837,-1077.79297775,0.00018396,2]
[358473274,1745190632847,-1077.79297775,0.00018396,2]
[358473275,1745190632856,-1077.79297775,0.00018396,2]
[358473276,1745190632866,-1077.79297774,0.00018396,2]
[358473277,1745190632876,-1077.79297774,0.00018396,2]
[358473278,1745190632885,-445.96514096,0.00018399,2]
[358473279,1745190632895,-500.0,0.00018399,2]
[358473280,1745190632905,-52194.59520312,0.000184,2]
[358473281,1745190632916,-370000.0,0.000184,2]
[358473282,1745190632925,-160.0,0.00018448,2]
[358473283,1745190632937,-7553.78910987,0.00018448,2]
[358473284,1745190632952,-303.09553512,0.00018448,2]
[358473285,1745190632964,-3314.29308636,0.00018448,2]
[358473300,1745190638052,-6190.16847646,0.000184,3]
[358473301,1745190638062,-1394.1463775,0.00018448,2]
[358473302,1745190638072,-160.0,0.00018561,2]
[358473303,1745190638081,-420.0,0.00018793,2]
[358473304,1745190638092,-402.0,0.00018816,2]
[358473305,1745190638101,-707.0,0.00018836,2]
[358473306,1745190638111,-544.0,0.00018836,2]
[358473307,1745190638120,-2248.0,0.00018836,2]
[358473308,1745190638129,-6115.02191002,0.000189,2]
[358473309,1745190638138,-160.0,0.00019132,2]
[358473310,1745190638148,-839.54484285,0.00019132,2]
[358473311,1745190638157,-160.0,0.00019132,2]
[358473312,1745190638166,-160.0,0.00019133,2]
[358473313,1745190638176,-2200.0,0.00019153,2]
[358473314,1745190638186,-500.0,0.00019173,2]
[358473315,1745190638196,-500.0,0.00019173,2]
[358473316,1745190638207,-500.0,0.00019173,2]
[358473317,1745190638217,-500.0,0.00019173,2]
[358473318,1745190638226,-500.0,0.00019178,2]
[358473319,1745190638235,-500.0,0.00019178,2]
[358473320,1745190638244,-237.40981233,0.00019178,2]
[358473321,1745190638255,-500.0,0.00019178,2]
[358473322,1745190638264,-500.0,0.00019178,2]
[358473323,1745190638273,-500.0,0.00019178,2]
[358473324,1745190638283,-503.26692799,0.00019178,2]
[358473325,1745190638292,-500.0,0.00019178,2]
[358473326,1745190638301,-500.0,0.00019178,2]
[358473327,1745190638310,-270.75,0.00019178,2]
[358473328,1745190638319,-500.0,0.00019178,2]
[358473329,1745190638328,-500.0,0.00019178,2]
[358473330,1745190638337,-151.856,0.00019178,2]
[358473331,1745190638346,-500.0,0.00019178,2]
[358473332,1745190638356,-500.0,0.00019178,2]
[358473333,1745190638365,-500.0,0.00019178,2]
[358473334,1745190638374,-500.0,0.00019178,2]
[358473335,1745190638383,-174.36,0.00019178,2]
[358473336,1745190638392,-500.0,0.00019178,2]
[358473337,1745190638401,-500.0,0.00019178,2]
[358473338,1745190638411,-835.57,0.00019178,2]
[358473339,1745190638420,-500.0,0.00019178,2]
[358473340,1745190638430,-500.0,0.00019178,2]
[358473341,1745190638439,-500.0,0.00019178,2]
[358473342,1745190638449,-1195.48,0.00019178,2]
[358473343,1745190638458,-500.0,0.00019178,2]
[358473344,1745190638467,-500.0,0.00019178,2]
[358473345,1745190638477,-500.0,0.00019178,2]
[358473346,1745190638486,-500.0,0.00019178,2]
[358473347,1745190638496,-500.0,0.00019178,2]
[358473348,1745190638506,-500.0,0.00019178,2]
[358473349,1745190638515,-500.0,0.00019178,2]
[358473350,1745190638524,-500.0,0.00019178,2]
[358473351,1745190638533,-500.0,0.00019178,2]
[358473352,1745190638542,-500.0,0.00019178,2]
[358473353,1745190638551,-500.0,0.00019178,2]
[358473354,1745190638560,-500.0,0.00019178,2]
[358473355,1745190638569,-500.0,0.00019178,2]
[358473356,1745190638578,-500.0,0.00019178,2]
[358473357,1745190638587,-500.0,0.00019178,2]
[358473358,1745190638596,-500.0,0.00019178,2]
[358473359,1745190638606,-500.0,0.00019178,2]
[358473360,1745190638615,-500.0,0.00019178,2]
[358473361,1745190638624,-393.84754896,0.00019178,2]
[358473362,1745190638637,-106.15245104,0.00019178,2]
[358473363,1745190638646,-500.0,0.00019178,2]
[358473364,1745190638656,-500.0,0.00019178,2]
[358473365,1745190638665,-500.0,0.00019178,2]
[358473366,1745190638674,-500.0,0.00019178,2]
[358473367,1745190638684,-210.21179656,0.00019178,2]
[358473368,1745190638697,-289.78820344,0.00019178,2]
[358473369,1745190638706,-500.0,0.00019178,2]
[358473370,1745190638716,-500.0,0.00019178,2]
[358473371,1745190638725,-500.0,0.00019178,2]
[358473372,1745190638735,-358.73,0.00019178,2]
[358473373,1745190638744,-542.36,0.00019178,2]
[358473374,1745190638753,-500.0,0.00019178,2]
[358473375,1745190638763,-500.0,0.00019178,2]
[358473376,1745190638772,-500.0,0.00019178,2]
[358473377,1745190638782,-500.0,0.00019178,2]
[358473378,1745190638791,-151.0,0.00019178,2]
[358473379,1745190638800,-500.0,0.00019178,2]
[358473380,1745190638810,-605.59,0.00019178,2]
[358473381,1745190638819,-500.0,0.00019178,2]
[358473382,1745190638828,-500.0,0.00019178,2]
[358473383,1745190638836,-500.0,0.00019178,2]
[358473384,1745190638846,-340.19979197,0.00019178,2]
[358473392,1745190640325,-420.58168056,0.00019132,2]
[358473393,1745190640337,-159.80020803,0.00019178,2]
[358473394,1745190640348,-500.0,0.00019178,2]
[358473395,1745190640360,-500.0,0.00019178,2]
[358473396,1745190640371,-162.36267309,0.00019178,2]
[358473397,1745190641119,-337.63732691,0.00019178,2]
[358473398,1745190641130,-74.39907306,0.00019178,2]
[358473431,1745190642922,-425.60092694,0.00019178,2]
[358473432,1745190642934,-500.0,0.00019178,2]
[358473435,1745190642949,-976.68,0.00019178,2]
[358473437,1745190642959,-500.0,0.00019178,2]
[358473439,1745190642970,-500.0,0.00019178,2]
[358473441,1745190642980,-500.0,0.00019178,2]
[358473443,1745190642992,-500.0,0.00019178,2]
[358473445,1745190643002,-500.0,0.00019178,2]
[358473447,1745190643014,-677.78,0.00019178,2]
[358473450,1745190643026,-500.0,0.00019178,2]
[358473452,1745190643037,-500.0,0.00019178,2]
[358473454,1745190643048,-500.0,0.00019178,2]
[358473456,1745190643058,-500.0,0.00019178,2]
[358473458,1745190643069,-500.0,0.00019178,2]
[358473460,1745190643080,-500.0,0.00019178,2]
[358473462,1745190643090,-383.88907306,0.00019178,2]
[358473465,1745190643104,-116.11092694,0.00019178,2]
[358473467,1745190643114,-500.0,0.00019178,2]
[358473468,1745190643125,-500.0,0.00019178,2]
[358473469,1745190643135,-500.0,0.00019178,2]
[358473472,1745190643147,-500.0,0.00019178,2]
[358473474,1745190643156,-500.0,0.00019178,2]
[358473476,1745190643167,-489.67202826,0.00019178,2]
[358473485,1745190646088,-10.32797174,0.00019178,2]
[358473486,1745190646100,-500.0,0.00019178,2]
[358473487,1745190646110,-500.0,0.00019178,2]
[358473488,1745190646119,-500.0,0.00019178,2]
[358473489,1745190646129,-245.44,0.00019178,2]
[358473490,1745190646138,-500.0,0.00019178,2]
[358473491,1745190646147,-500.0,0.00019178,2]
[358473492,1745190646156,-500.0,0.00019178,2]
[358473493,1745190646165,-151.0,0.00019178,2]
[358473494,1745190646174,-500.0,0.00019178,2]
[358473495,1745190646183,-151.0,0.00019178,2]
[358473496,1745190646193,-500.0,0.00019178,2]
[358473497,1745190646202,-500.0,0.00019178,2]
[358473498,1745190646211,-151.0,0.00019178,2]
[358473499,1745190646220,-500.0,0.00019178,2]
[358473500,1745190646228,-500.0,0.00019178,2]
[358473501,1745190646237,-500.0,0.00019178,2]
[358473502,1745190646247,-500.0,0.00019178,2]
[358473503,1745190646256,-500.0,0.00019178,2]
[358473504,1745190646265,-500.0,0.00019178,2]
[358473505,1745190646275,-500.0,0.00019178,2]
[358473506,1745190646284,-500.0,0.00019178,2]
[358473507,1745190646293,-500.0,0.00019178,2]
[358473508,1745190646302,-500.0,0.00019178,2]
[358473509,1745190646310,-500.0,0.00019178,2]
[358473510,1745190646319,-500.0,0.00019178,2]
[358473511,1745190646328,-500.0,0.00019178,2]
[358473512,1745190646337,-500.0,0.00019178,2]
[358473513,1745190646346,-500.0,0.00019178,2]
[358473514,1745190646355,-500.0,0.00019178,2]
[358473515,1745190646364,-500.0,0.00019178,2]
[358473516,1745190646373,-500.0,0.00019178,2]
[358473517,1745190646382,-500.0,0.00019178,2]
[358473518,1745190646392,-500.0,0.00019178,2]
[358473519,1745190646401,-1106.76,0.00019178,2]
[358473520,1745190646411,-500.0,0.00019178,2]
[358473521,1745190646422,-500.0,0.00019178,2]
[358473522,1745190646431,-500.0,0.00019178,2]
[358473523,1745190646441,-369.39568318,0.00019178,2]
[358473524,1745190646450,-500.0,0.00019178,2]
[358473525,1745190646460,-500.0,0.00019178,2]
[358473526,1745190646469,-500.0,0.00019178,2]
[358473527,1745190646479,-500.0,0.00019178,2]
[358473528,1745190646492,-500.0,0.00019178,2]
[358473529,1745190646501,-500.0,0.00019178,2]
[358473530,1745190646511,-500.0,0.00019178,2]
[358473531,1745190646521,-500.0,0.00019178,2]
[358473532,1745190646530,-446.02399655,0.00019178,2]
[358473533,1745190646566,-53.97600345,0.00019178,2]
[358473534,1745190646576,-500.0,0.00019178,2]
[358473535,1745190646586,-328.24369468,0.00019178,2]
[358473549,1745191678111,-6649.66853746,0.00016,2]
[358473561,1745191697500,1489.56442766,0.000125,2]
[358473564,1745191717690,-605.94248948,0.00017,2]
[358473587,1745191832000,-229.4619724,0.00017289,2]
[358473588,1745191832011,-421.48396514,0.00018,2]
[358473589,1745191832023,-1480.1238928,0.00018195,2]
[358473590,1745191832033,-1000.0,0.00018196,2]
[358473591,1745191832045,-609.61385133,0.00018273,2]
[358473592,1745191832055,-500.0,0.00018273,2]
[358473593,1745191832066,-500.0,0.00018273,2]
[358473594,1745191832077,-500.0,0.00018273,2]
[358473595,1745191832087,-300.0,0.00018294,2]
[358473596,1745191832098,-300.0,0.00018294,2]
[358473597,1745191832108,-162.17559868,0.00018295,2]
[358473598,1745191832118,-500.0,0.00018295,2]
[358473600,1745191832128,-500.0,0.00018295,2]
[358473603,1745191832138,-500.0,0.00018295,2]
[358473605,1745191832148,-486.02636907,0.00018295,2]
[358473607,1745191832157,-219.60836399,0.00018295,2]
[358473609,1745191832167,-500.0,0.00018295,2]
[358473611,1745191832176,-513.90701371,0.00018295,2]
[358473613,1745191832186,-613.52291907,0.00018295,2]
[358473615,1745191832195,-980.14080619,0.00018295,2]
[358473617,1745191832205,-440.69032762,0.00018295,2]
[358473619,1745191832217,-539.45047857,0.00018295,2]
[358473621,1745191832226,-980.14080619,0.00018295,2]
[358473623,1745191832236,-980.14080619,0.00018295,2]
[358473624,1745191832245,-980.14080619,0.00018295,2]
[358473625,1745191832255,-980.14080619,0.00018295,2]
[358473626,1745191832266,-980.14080619,0.00018295,2]
[358473627,1745191832276,-980.14080619,0.00018295,2]
[358473628,1745191832285,-980.14080619,0.00018295,2]
[358473629,1745191832295,-980.14080619,0.00018295,2]
[358473630,1745191832304,-980.14080619,0.00018295,2]
[358473631,1745191832313,-980.14080619,0.00018295,2]
[358473632,1745191832323,-980.14080619,0.00018295,2]
[358473633,1745191832332,-355.56556741,0.00018295,2]
[358473635,1745191838184,-624.57523878,0.00018295,2]
[358473636,1745191838194,-123.14476122,0.00018295,2]
[358473637,1745191838206,-856.99604497,0.00018295,2]
[358473638,1745191838216,-980.14080619,0.00018295,2]
[358473639,1745191838225,-980.14080619,0.00018295,2]
[358473640,1745191838235,-770.72234265,0.00018295,2]
[358473654,1745191840324,-209.41846354,0.00018295,2]
[358473655,1745191840334,-980.14080619,0.00018295,2]
[358473656,1745191840343,-980.14080619,0.00018295,2]
[358473657,1745191840352,-10.50511852,0.00018295,2]
[358473658,1745191840417,-969.63568767,0.00018295,2]
[358473659,1745191840427,-980.14080619,0.00018295,2]
[358473660,1745191840437,-980.14080619,0.00018295,2]
[358473661,1745191840447,-980.14080619,0.00018295,2]
[358473662,1745191840457,-980.14080619,0.00018295,2]
[358473663,1745191840467,-980.14080619,0.00018295,2]
[358473664,1745191840476,-980.14080619,0.00018295,2]
[358473665,1745191840486,-980.14080619,0.00018295,2]
[358473666,1745191840495,-980.14080619,0.00018295,2]
[358473667,1745191840505,-980.14080619,0.00018295,2]
[358473668,1745191840514,-980.14080619,0.00018295,2]
[358473669,1745191840524,-980.14080619,0.00018295,2]
[358473670,1745191840534,-980.14080619,0.00018295,2]
[358473671,1745191840544,-980.14080619,0.00018295,2]
[358473672,1745191840558,-980.14080619,0.00018295,2]
[358473673,1745191840568,-980.14080619,0.00018295,2]
[358473674,1745191840578,-980.14080619,0.00018295,2]
[358473675,1745191840587,-980.14080619,0.00018295,2]
[358473676,1745191840596,-980.14080619,0.00018295,2]
[358473677,1745191840606,-968.60973788,0.00018295,2]
[358473678,1745191840617,-968.60973788,0.00018295,2]
[358473679,1745191840626,-968.60973788,0.00018295,2]
[358473680,1745191840636,-968.60973788,0.00018295,2]
[358473681,1745191840645,-968.60973788,0.00018295,2]
[358473682,1745191840656,-968.60973788,0.00018295,2]
[358473683,1745191840665,-968.60973788,0.00018295,2]
[358473684,1745191840674,-968.60973788,0.00018295,2]
[358473685,1745191840683,-968.60973788,0.00018295,2]
[358473686,1745191840692,-968.60973788,0.00018295,2]
[358473687,1745191840701,-968.60973788,0.00018295,2]
[358473688,1745191840712,-968.60973788,0.00018295,2]
[358473689,1745191840723,-968.60973788,0.00018295,2]
[358473690,1745191840733,-968.60973788,0.00018295,2]
[358473691,1745191840743,-968.60973788,0.00018295,2]
[358473692,1745191840754,-968.60973788,0.00018295,2]
[358473693,1745191840763,-968.60973788,0.00018295,2]
[358473694,1745191840773,-968.60973788,0.00018295,2]
[358473695,1745191840783,-968.60973788,0.00018295,2]
[358473696,1745191840792,-968.60973788,0.00018295,2]
[358473697,1745191840802,-968.60973788,0.00018295,2]
[358473698,1745191840812,-968.60973788,0.00018295,2]
[358473699,1745191840823,-968.60973788,0.00018295,2]
[358473700,1745191840832,-968.60973788,0.00018295,2]
[358473701,1745191840842,-968.60973788,0.00018295,2]
[358473702,1745191840852,-968.60973788,0.00018295,2]
[358473703,1745191840862,-968.60973788,0.00018295,2]
[358473704,1745191840872,-968.60973788,0.00018295,2]
[358473705,1745191840883,-968.60973788,0.00018295,2]
[358473706,1745191840894,-968.60973788,0.00018295,2]
[358473707,1745191840903,-964.73529893,0.00018295,2]
[358473708,1745191840913,-964.73529893,0.00018295,2]
[358473709,1745191840922,-964.73529893,0.00018295,2]
[358473710,1745191840931,-964.73529893,0.00018295,2]
[358473711,1745191840941,-964.73529893,0.00018295,2]
[358473712,1745191840952,-964.73529893,0.00018295,2]
[358473713,1745191840962,-964.73529893,0.00018295,2]
[358473714,1745191840971,-964.73529893,0.00018295,2]
[358473715,1745191840980,-964.73529893,0.00018295,2]
[358473716,1745191840990,-964.73529893,0.00018295,2]
[358473717,1745191840999,-964.73529893,0.00018295,2]
[358473718,1745191841009,-964.73529893,0.00018295,2]
[358473719,1745191841018,-964.73529893,0.00018295,2]
[358473720,1745191841027,-964.73529893,0.00018295,2]
[358473721,1745191841037,-964.73529893,0.00018295,2]
[358473722,1745191841046,-964.73529893,0.00018295,2]
[358473723,1745191841055,-964.73529893,0.00018295,2]
[358473724,1745191841064,-964.73529893,0.00018295,2]
[358473725,1745191841075,-964.73529893,0.00018295,2]
[358473726,1745191841087,-964.73529893,0.00018295,2]
[358473727,1745191841097,-151.0,0.00018295,2]
[358473728,1745191841106,-26299.68836691,0.00018296,2]
[358473737,1745191843030,-2029.42724631,0.00018296,2]
[358473739,1745191846166,-58538.6965686,0.00018296,2]
[358473740,1745191846178,-1910.87685476,0.00018296,2]
[358473940,1745193032049,-317.80668087,0.000179,2]
[358473970,1745193038354,-682.19331913,0.000179,2]
[358473971,1745193038365,-1295.1084062,0.00018095,2]
[358473972,1745193038375,-300.0,0.00018193,2]
[358473973,1745193038385,-300.0,0.00018193,2]
[358473974,1745193038395,-168.21189041,0.00018194,2]
[358473975,1745193038404,-254.48638426,0.00018194,2]
[358473976,1745193038514,-245.51361574,0.00018194,2]
[358473977,1745193038524,-500.0,0.00018194,2]
[358473978,1745193038534,-359.51227633,0.00018194,2]
[358473979,1745193038546,-140.48772367,0.00018194,2]
[358473981,1745193038556,-500.0,0.00018194,2]
[358473982,1745193038565,-500.0,0.00018194,2]
[358473983,1745193038575,-500.0,0.00018194,2]
[358473984,1745193038585,-292.03195625,0.00018194,2]
[358473985,1745193038594,-500.0,0.00018194,2]
[358473986,1745193038603,-500.0,0.00018194,2]
[358473987,1745193038613,-500.0,0.00018194,2]
[358473988,1745193038623,-500.0,0.00018194,2]